fUSD/lending_fUSD_20260616
["ID","MTS","AMOUNT","RATE_DAILY","PERIOD"]
[425189575,1781565058000,-457.80264855,0.00029607,7]
[425189572,1781565058000,-557.07783957,0.00029607,7]
[425189583,1781565058000,-362.55866854,0.00029614,7]
[425189579,1781565058000,-538.60319369,0.00029614,7]
[425189590,1781565058000,-500.0,0.00029808,14]
[425189602,1781565058000,-327.51356,0.000299,14]
[425189591,1781565058000,-502.28735956,0.00029808,14]
[425189585,1781565058000,-3837.44,0.00029634,30]
[425189587,1781565058000,-4053.36,0.00029634,30]
[425189586,1781565058000,-3998.92,0.00029634,30]
[425189593,1781565058000,-295.77,0.00029828,16]
[425189595,1781565058000,-302.0,0.00029855,3]
[425189596,1781565058000,-379.0,0.00029866,7]
[425189594,1781565058000,-160.0,0.00029855,3]
[425189592,1781565058000,-160.0,0.00029816,3]
[425189597,1781565058000,-1101.34,0.0002987,7]
[425189599,1781565058000,-300.0,0.00029899,10]
[425189598,1781565058000,-300.0,0.00029899,10]
[425189577,1781565058000,-464.59335671,0.00029607,7]
[425189589,1781565058000,-552.0,0.00029807,4]
[425189571,1781565058000,-626.72151347,0.00029607,7]
[425189556,1781565058000,-150.0,0.00029534,2]
[425189569,1781565058000,-203.03940094,0.00029607,7]
[425189601,1781565058000,-327.51356,0.000299,7]
[425189542,1781565058000,-3998.92,0.00029467,2]
[425189550,1781565058000,-1114.71903552,0.0002948,5]
[425189551,1781565058000,-1082.08654406,0.0002948,5]
[425189544,1781565058000,-1101.47974494,0.0002948,5]
[425189553,1781565058000,-160.0,0.00029496,3]
[425189552,1781565058000,-1745.02838896,0.0002948,5]
[425189543,1781565058000,-4053.36,0.00029467,2]
[425189545,1781565058000,-1115.83961043,0.0002948,5]
[425189547,1781565058000,-1049.68571439,0.0002948,5]
[425189546,1781565058000,-1091.36717458,0.0002948,5]
[425189548,1781565058000,-1073.70320637,0.0002948,5]
[425189549,1781565058000,-1021.73931773,0.0002948,5]
[425189570,1781565058000,-487.46830646,0.00029607,7]
[425189554,1781565058000,-2140.61,0.000295,7]
[425189563,1781565058000,-576.90718205,0.00029576,7]
[425189565,1781565058000,-1242.0,0.0002959,7]
[425189564,1781565058000,-214.69624306,0.00029576,7]
[425189566,1781565058000,-346.841715,0.000296,7]
[425189557,1781565058000,-621.55325057,0.00029576,7]
[425189561,1781565058000,-488.61420928,0.00029576,7]
[425189562,1781565058000,-218.16141472,0.00029576,7]
[425189560,1781565058000,-541.97766937,0.00029576,7]
[425189558,1781565058000,-436.07532407,0.00029576,7]
[425189559,1781565058000,-499.03487601,0.00029576,7]
[425189567,1781565058000,-346.841715,0.000296,14]
[425189578,1781565058000,-536.72923276,0.00029614,2]
[425189568,1781565058000,-2172.91,0.000296,7]
[425189555,1781565058000,-301.81411277,0.0002953,7]
[425189600,1781565058000,-8261.34126804,0.000299,30]
[425189660,1781565058000,-10000.0,0.0003,2]
[425189616,1781565058000,-6717.21522335,0.000299,2]
[425189639,1781565058000,-22500.0,0.0003,2]
[425189630,1781565058000,-622.00380243,0.00029959,7]
[425189633,1781565058000,-300.0,0.00029999,10]
[425189640,1781565058000,-2500.0,0.0003,2]
[425189642,1781565058000,-87412.99889823,0.0003,7]
[425189652,1781565058000,-22499.99,0.0003,2]
[425189653,1781565058000,-2499.99,0.0003,2]
[425189641,1781565058000,-87412.99889823,0.0003,7]
[425189643,1781565058000,-1637.81,0.0003,2]
[425189644,1781565058000,-22259.45,0.0003,2]
[425189645,1781565058000,-25000.0,0.0003,2]
[425189648,1781565058000,-22499.99,0.0003,2]
[425189650,1781565058000,-1555.17,0.0003,2]
[425189632,1781565058000,-300.0,0.00029999,10]
[425189647,1781565058000,-399509.80226767,0.0003,7]
[425189651,1781565058000,-4100.35,0.0003,2]
[425189654,1781565058000,-24999.99,0.0003,2]
[425189657,1781565058000,-22499.99,0.0003,2]
[425189656,1781565058000,-2499.99,0.0003,2]
[425189655,1781565058000,-12499.99,0.0003,2]
[425189658,1781565058000,-24999.99,0.0003,2]
[425189662,1781565058000,-12500.0,0.0003,2]
[425189664,1781565058000,-12499.97,0.0003,2]
[425189665,1781565058000,-2648.95,0.0003,2]
[425189661,1781565058000,-25000.0,0.0003,2]
[425189663,1781565058000,-22500.0,0.0003,2]
[425189603,1781565058000,-318.310849,0.000299,7]
[425189659,1781565058000,-211.459999,0.0003,11]
[425189649,1781565058000,-24999.99,0.0003,2]
[425189634,1781565058000,-1095.50463021,0.0003,10]
[425189646,1781565058000,-22500.0,0.0003,2]
[425189635,1781565058000,-22499.99,0.0003,2]
[425189604,1781565058000,-318.310849,0.000299,14]
[425189636,1781565058000,-24999.99,0.0003,2]
[425189605,1781565058000,-76848.10149278,0.000299,2]
[425189611,1781565058000,-6717.21522335,0.000299,2]
[425189607,1781565058000,-343.841715,0.000299,14]
[425189615,1781565058000,-6717.21522335,0.000299,2]
[425189606,1781565058000,-343.841715,0.000299,7]
[425189609,1781565058000,-6717.21522335,0.000299,2]
[425189612,1781565058000,-6717.21522335,0.000299,2]
[425189608,1781565058000,-6717.21522342,0.000299,2]
[425189610,1781565058000,-6717.21522335,0.000299,2]
[425189613,1781565058000,-6717.21522335,0.000299,2]
[425189618,1781565058000,-6717.21522335,0.000299,2]
[425189617,1781565058000,-6717.21522335,0.000299,2]
[425189614,1781565058000,-6717.21522335,0.000299,2]
[425189621,1781565058000,-6717.21522335,0.000299,2]
[425189620,1781565058000,-6717.21522335,0.000299,2]
[425189637,1781565058000,-2499.99,0.0003,2]
[425189631,1781565058000,-151.0,0.00029997,7]
[425189629,1781565058000,-153.7061673,0.00029949,20]
[425189625,1781565058000,-6717.21522335,0.000299,2]
[425189626,1781565058000,-6717.21522335,0.000299,2]
[425189638,1781565058000,-25000.0,0.0003,2]
[425189624,1781565058000,-6717.21522335,0.000299,2]
[425189622,1781565058000,-6717.21522335,0.000299,2]
[425189628,1781565058000,-5528.0,0.000299,5]
[425189619,1781565058000,-6717.21522335,0.000299,2]
[425189623,1781565058000,-6717.21522335,0.000299,2]
[425189627,1781565058000,-6717.21522335,0.000299,2]
[425189715,1781565059000,-151.0,0.0003,7]
[425189716,1781565059000,-698.492968,0.0003,7]
[425189707,1781565059000,-3101.633817,0.0003,7]
[425189694,1781565059000,-201.788527,0.0003,7]
[425189706,1781565059000,-3101.633817,0.0003,7]
[425189701,1781565059000,-382.272043,0.0003,7]
[425189702,1781565059000,-382.272043,0.0003,7]
[425189698,1781565059000,-164.7,0.0003,2]
[425189697,1781565059000,-150.0,0.0003,2]
[425189710,1781565059000,-200.0,0.0003,2]
[425189699,1781565059000,-151.0,0.0003,7]
[425189700,1781565059000,-200.0,0.0003,2]
[425189714,1781565059000,-698.492968,0.0003,7]
[425189713,1781565059000,-698.492968,0.0003,7]
[425189717,1781565059000,-151.0,0.0003,7]
[425189708,1781565059000,-3101.633817,0.0003,7]
[425189709,1781565059000,-3101.633817,0.0003,7]
[425189712,1781565059000,-698.492968,0.0003,7]
[425189711,1781565059000,-151.0,0.0003,7]
[425189718,1781565059000,-151.0,0.0003,7]
[425189729,1781565059000,-269.982709,0.0003,7]
[425189728,1781565059000,-496.991102,0.0003,7]
[425189722,1781565059000,-580.474716,0.0003,7]
[425189720,1781565059000,-151.0,0.0003,7]
[425189725,1781565059000,-496.991102,0.0003,7]
[425189719,1781565059000,-151.0,0.0003,7]
[425189727,1781565059000,-580.474716,0.0003,7]
[425189696,1781565059000,-201.788527,0.0003,7]
[425189705,1781565059000,-151.0,0.0003,7]
[425189695,1781565059000,-201.788527,0.0003,7]
[425189667,1781565059000,-9999.99,0.0003,2]
[425189704,1781565059000,-382.272043,0.0003,7]
[425189721,1781565059000,-496.991102,0.0003,7]
[425189669,1781565059000,-15000.0,0.0003,2]
[425189670,1781565059000,-2000.0,0.0003,14]
[425189668,1781565059000,-2499.99,0.0003,2]
[425189671,1781565059000,-22500.0,0.0003,2]
[425189677,1781565059000,-12500.0,0.0003,2]
[425189678,1781565059000,-2500.0,0.0003,2]
[425189666,1781565059000,-24999.99,0.0003,2]
[425189673,1781565059000,-87412.99889824,0.0003,7]
[425189675,1781565059000,-9999.99,0.0003,2]
[425189674,1781565059000,-6776.4,0.0003,2]
[425189672,1781565059000,-25000.0,0.0003,2]
[425189676,1781565059000,-87412.99889824,0.0003,7]
[425189703,1781565059000,-382.272043,0.0003,7]
[425189691,1781565059000,-301.559945,0.0003,7]
[425189679,1781565059000,-369.6237698,0.0003,30]
[425189684,1781565059000,-151.0,0.0003,7]
[425189689,1781565059000,-151.0,0.0003,7]
[425189686,1781565059000,-390.399329,0.0003,7]
[425189690,1781565059000,-151.0,0.0003,7]
[425189683,1781565059000,-212.696934,0.0003,7]
[425189681,1781565059000,-212.696934,0.0003,7]
[425189687,1781565059000,-390.399329,0.0003,7]
[425189685,1781565059000,-390.399329,0.0003,7]
[425189682,1781565059000,-212.696934,0.0003,7]
[425189688,1781565059000,-390.399329,0.0003,7]
[425189692,1781565059000,-168.824688,0.0003,7]
[425189693,1781565059000,-201.788527,0.0003,7]
[425189680,1781565059000,-212.696934,0.0003,7]
[425189726,1781565059000,-269.982709,0.0003,7]
[425189777,1781565059000,-451.41326177,0.0003004,7]
[425189724,1781565059000,-580.474716,0.0003,7]
[425189767,1781565059000,-829.45197902,0.0003004,7]
[425189762,1781565059000,-386.27756377,0.0003004,7]
[425189760,1781565059000,-656.27203527,0.0003004,7]
[425189763,1781565059000,-729.42026075,0.0003004,7]
[425189764,1781565059000,-668.58979677,0.0003004,7]
[425189769,1781565059000,-745.61134219,0.0003004,7]
[425189778,1781565059000,-854.60089982,0.0003004,7]
[425189779,1781565059000,-427.04543393,0.0003004,7]
[425189771,1781565059000,-331.01355507,0.0003004,7]
[425189768,1781565059000,-625.48810936,0.0003004,7]
[425189780,1781565059000,-635.39408736,0.0003004,7]
[425189774,1781565059000,-245.26871337,0.0003004,7]
[425189772,1781565059000,-201.02374185,0.0003004,7]
[425189765,1781565059000,-686.68442031,0.0003004,7]
[425189770,1781565059000,-894.94106903,0.0003004,7]
[425189776,1781565059000,-990.99383726,0.0003004,7]
[425189782,1781565059000,-460.71839203,0.0003004,7]
[425189781,1781565059000,-702.89785283,0.0003004,7]
[425189785,1781565059000,-211.82838949,0.0003004,7]
[425189786,1781565059000,-710.14958014,0.0003004,7]
[425189783,1781565059000,-670.0033703,0.0003004,7]
[425189788,1781565059000,-544.83564723,0.0003004,7]
[425189784,1781565059000,-232.5667205,0.0003004,7]
[425189791,1781565059000,-423.73897357,0.0003004,7]
[425189787,1781565059000,-593.03957959,0.0003004,5]
[425189790,1781565059000,-600.8945931,0.0003004,7]
[425189789,1781565059000,-685.10061662,0.0003004,5]
[425189723,1781565059000,-496.991102,0.0003,7]
[425189773,1781565059000,-434.93314767,0.0003004,7]
[425189761,1781565059000,-712.69287666,0.0003004,7]
[425189775,1781565059000,-808.65576026,0.0003004,7]
[425189758,1781565059000,-150.0,0.00030037,2]
[425189766,1781565059000,-304.0452185,0.0003004,7]
[425189730,1781565059000,-580.474716,0.0003,7]
[425189736,1781565059000,-151.0,0.0003,3]
[425189739,1781565059000,-200.0,0.0003,2]
[425189737,1781565059000,-151.0,0.0003,3]
[425189738,1781565059000,-151.0,0.0003,3]
[425189742,1781565059000,-758.645977,0.0003,7]
[425189735,1781565059000,-200.0,0.0003,2]
[425189732,1781565059000,-269.982709,0.0003,7]
[425189740,1781565059000,-758.645977,0.0003,7]
[425189741,1781565059000,-758.645977,0.0003,7]
[425189731,1781565059000,-269.982709,0.0003,7]
[425189734,1781565059000,-174.407542,0.0003,7]
[425189743,1781565059000,-758.645977,0.0003,7]
[425189744,1781565059000,-678.322243,0.0003,7]
[425189733,1781565059000,-151.0,0.0003,7]
[425189745,1781565059000,-678.322243,0.0003,7]
[425189757,1781565059000,-766.0,0.00030037,2]
[425189759,1781565059000,-150.0,0.00030037,2]
[425189755,1781565059000,-500.0,0.00030037,14]
[425189753,1781565059000,-151.0,0.0003,7]
[425189749,1781565059000,-151.0,0.0003,7]
[425189754,1781565059000,-500.0,0.00030037,14]
[425189756,1781565059000,-500.0,0.00030037,14]
[425189751,1781565059000,-151.0,0.0003,7]
[425189747,1781565059000,-678.322243,0.0003,7]
[425189752,1781565059000,-151.0,0.0003,7]
[425189746,1781565059000,-678.322243,0.0003,7]
[425189750,1781565059000,-151.0,0.0003,7]
[425189748,1781565059000,-151.0,0.0003,7]
[425189807,1781565060000,-873.39539764,0.0003004,7]
[425189805,1781565060000,-404.91350889,0.0003004,7]
[425189811,1781565060000,-754.12043863,0.0003004,7]
[425189814,1781565060000,-150.98317296,0.0003004,7]
[425189815,1781565060000,-601.24787869,0.0003004,7]
[425189809,1781565060000,-722.25221494,0.0003004,7]
[425189818,1781565060000,-613.73384381,0.0003004,7]
[425189812,1781565060000,-371.39524113,0.0003004,7]
[425189817,1781565060000,-654.38234953,0.0003004,7]
[425189820,1781565060000,-684.25926916,0.0003004,7]
[425189821,1781565060000,-642.88234948,0.0003004,7]
[425189822,1781565060000,-465.64138747,0.0003004,7]
[425189806,1781565060000,-1264.89733612,0.0003004,7]
[425189813,1781565060000,-620.90587696,0.0003004,7]
[425189816,1781565060000,-160.17862399,0.0003004,7]
[425189792,1781565060000,-590.88770781,0.0003004,7]
[425189808,1781565060000,-748.49311238,0.0003004,7]
[425189803,1781565060000,-535.39091988,0.0003004,7]
[425189800,1781565060000,-233.65659571,0.0003004,7]
[425189798,1781565060000,-736.61737234,0.0003004,7]
[425189799,1781565060000,-377.16803743,0.0003004,7]
[425189801,1781565060000,-374.48539809,0.0003004,7]
[425189802,1781565060000,-493.38853462,0.0003004,7]
[425189797,1781565060000,-221.99829012,0.0003004,7]
[425189795,1781565060000,-440.27894487,0.0003004,2]
[425189796,1781565060000,-649.35086237,0.0003004,7]
[425189793,1781565060000,-467.87463109,0.0003004,7]
[425189804,1781565060000,-173.85584648,0.0003004,7]
[425189794,1781565060000,-389.7033202,0.0003004,2]
[425189819,1781565060000,-716.9960742,0.0003004,7]
[425189810,1781565060000,-579.32257692,0.0003004,7]
[425189826,1781565060000,-391.87495836,0.0003004,7]
[425189829,1781565060000,-156.95062839,0.0003004,7]
[425189823,1781565060000,-229.40959686,0.0003004,7]
[425189847,1781565060000,-500.0,0.00030082,14]
[425189848,1781565060000,-500.0,0.00030082,14]
[425189844,1781565060000,-500.0,0.00030082,14]
[425189843,1781565060000,-500.0,0.00030082,14]
[425189846,1781565060000,-500.0,0.00030082,14]
[425189850,1781565060000,-500.0,0.00030082,14]
[425189841,1781565060000,-500.0,0.00030082,14]
[425189849,1781565060000,-500.0,0.00030082,14]
[425189853,1781565060000,-500.0,0.00030082,14]
[425189855,1781565060000,-3906.79,0.000301,2]
[425189854,1781565060000,-396.26359173,0.00030082,14]
[425189856,1781565060000,-349.841715,0.000301,7]
[425189824,1781565060000,-404.93436881,0.0003004,7]
[425189857,1781565060000,-349.841715,0.000301,14]
[425189851,1781565060000,-500.0,0.00030082,14]
[425189845,1781565060000,-500.0,0.00030082,14]
[425189852,1781565060000,-500.0,0.00030082,14]
[425189840,1781565060000,-500.0,0.00030082,14]
[425189825,1781565060000,-203.16343688,0.0003004,7]
[425189838,1781565060000,-500.0,0.00030082,14]
[425189830,1781565060000,-761.70364124,0.0003004,7]
[425189828,1781565060000,-159.91427372,0.0003004,7]
[425189831,1781565060000,-775.56733976,0.0003004,7]
[425189834,1781565060000,-2834.74,0.00030079,5]
[425189827,1781565060000,-349.95237561,0.0003004,7]
[425189836,1781565060000,-500.0,0.00030082,14]
[425189833,1781565060000,-400.0,0.0003007,2]
[425189842,1781565060000,-500.0,0.00030082,14]
[425189835,1781565060000,-500.0,0.00030082,14]
[425189837,1781565060000,-500.0,0.00030082,14]
[425189839,1781565060000,-500.0,0.00030082,14]
[425189832,1781565060000,-400.0,0.0003007,2]
[425189897,1781565061000,-192.39434698,0.00030137,40]
[425189889,1781565061000,-98908.82930664,0.0003013,2]
[425189898,1781565061000,-644.23,0.00030137,50]
[425189883,1781565061000,-205.86846489,0.0003013,2]
[425189888,1781565061000,-30074.97252951,0.0003013,2]
[425189886,1781565061000,-200714.64272165,0.0003013,7]
[425189882,1781565061000,-152.0,0.0003013,30]
[425189884,1781565061000,-481.00534063,0.0003013,2]
[425189890,1781565061000,-2834.74,0.00030133,7]
[425189893,1781565061000,-168.24213592,0.00030137,7]
[425189899,1781565061000,-1963.0,0.00030137,120]
[425189894,1781565061000,-336.48427184,0.00030137,7]
[425189891,1781565061000,-549.36,0.00030137,2]
[425189895,1781565061000,-504.72640776,0.00030137,7]
[425189896,1781565061000,-237.13459978,0.00030137,7]
[425189900,1781565061000,-150.0,0.00030137,30]
[425189901,1781565061000,-500.0,0.00030137,3]
[425189902,1781565061000,-500.0,0.00030137,3]
[425189904,1781565061000,-2724.0,0.00030137,120]
[425189903,1781565061000,-500.0,0.00030137,3]
[425189906,1781565061000,-500.0,0.00030137,3]
[425189887,1781565061000,-1921.05541089,0.0003013,2]
[425189892,1781565061000,-673.27116211,0.00030137,2]
[425189885,1781565061000,-302.97327201,0.0003013,2]
[425189865,1781565061000,-300.0,0.00030124,10]
[425189881,1781565061000,-352.0,0.0003013,30]
[425189908,1781565061000,-150.0,0.00030137,3]
[425189859,1781565061000,-5790.0,0.000301,7]
[425189858,1781565061000,-1794.78,0.000301,7]
[425189861,1781565061000,-560.42728088,0.0003011,14]
[425189863,1781565061000,-520.21399416,0.0003011,14]
[425189860,1781565061000,-584.7936844,0.0003011,2]
[425189864,1781565061000,-300.0,0.00030124,10]
[425189868,1781565061000,-12500.0,0.00030125,2]
[425189862,1781565061000,-271.41599695,0.0003011,2]
[425189866,1781565061000,-22500.0,0.00030125,2]
[425189880,1781565061000,-1473.0,0.0003013,30]
[425189867,1781565061000,-22500.0,0.00030125,2]
[425189871,1781565061000,-12500.0,0.00030125,2]
[425189870,1781565061000,-22500.0,0.00030125,2]
[425189873,1781565061000,-300.0,0.00030129,10]
[425189872,1781565061000,-151.0,0.00030127,7]
[425189877,1781565061000,-888.0,0.0003013,30]
[425189874,1781565061000,-300.0,0.00030129,10]
[425189876,1781565061000,-247.0,0.0003013,30]
[425189875,1781565061000,-184.0,0.0003013,30]
[425189878,1781565061000,-308.0,0.0003013,30]
[425189879,1781565061000,-181.0,0.0003013,30]
[425189869,1781565061000,-22500.0,0.00030125,2]
[425189905,1781565061000,-500.0,0.00030137,3]
[425189945,1781565061000,-1017.05536429,0.0003014,4]
[425189907,1781565061000,-500.0,0.00030137,3]
[425189934,1781565061000,-1017.05536429,0.0003014,4]
[425189937,1781565061000,-1017.05536429,0.0003014,4]
[425189939,1781565061000,-1017.05536429,0.0003014,4]
[425189940,1781565061000,-1017.05536429,0.0003014,4]
[425189936,1781565061000,-1017.05536429,0.0003014,4]
[425189938,1781565061000,-1017.05536429,0.0003014,4]
[425189942,1781565061000,-1017.05536429,0.0003014,4]
[425189947,1781565061000,-1017.05,0.0003014,4]
[425189944,1781565061000,-1017.05536429,0.0003014,4]
[425189943,1781565061000,-1017.05536429,0.0003014,4]
[425189935,1781565061000,-1017.05536429,0.0003014,4]
[425189946,1781565061000,-1017.05536429,0.0003014,4]
[425189948,1781565061000,-2373.12918334,0.0003014,4]
[425189950,1781565061000,-2373.12918334,0.0003014,4]
[425189953,1781565061000,-2373.12918334,0.0003014,4]
[425189952,1781565061000,-2373.12918334,0.0003014,4]
[425189954,1781565061000,-2373.12918334,0.0003014,4]
[425189958,1781565061000,-2373.12918334,0.0003014,4]
[425189957,1781565061000,-2373.12918334,0.0003014,4]
[425189955,1781565061000,-2373.12918334,0.0003014,4]
[425189956,1781565061000,-2373.12918334,0.0003014,4]
[425189909,1781565061000,-200.0,0.00030137,2]
[425189951,1781565061000,-2373.12918334,0.0003014,4]
[425189933,1781565061000,-1017.05536429,0.0003014,4]
[425189949,1781565061000,-2373.12918334,0.0003014,4]
[425189941,1781565061000,-1017.05536429,0.0003014,4]
[425189910,1781565061000,-285.0,0.00030137,2]
[425189932,1781565061000,-1017.05536429,0.0003014,4]
[425189912,1781565061000,-1500.0,0.00030137,15]
[425189914,1781565061000,-1500.0,0.00030137,15]
[425189911,1781565061000,-1500.0,0.00030137,15]
[425189913,1781565061000,-1500.0,0.00030137,15]
[425189918,1781565061000,-1500.0,0.00030137,15]
[425189916,1781565061000,-1500.0,0.00030137,15]
[425189915,1781565061000,-1500.0,0.00030137,15]
[425189917,1781565061000,-1500.0,0.00030137,15]
[425189920,1781565061000,-1500.0,0.00030137,15]
[425189919,1781565061000,-1500.0,0.00030137,15]
[425189927,1781565061000,-1958.1,0.00030137,7]
[425189921,1781565061000,-1835.383212,0.00030137,15]
[425189924,1781565061000,-758.63,0.00030137,120]
[425189928,1781565061000,-1017.05536429,0.0003014,4]
[425189926,1781565061000,-500.0,0.00030137,2]
[425189922,1781565061000,-810.95,0.00030137,120]
[425189929,1781565061000,-1017.05536429,0.0003014,4]
[425189925,1781565061000,-500.0,0.00030137,2]
[425189930,1781565061000,-1017.05536429,0.0003014,4]
[425189923,1781565061000,-363.45,0.00030137,120]
[425189931,1781565061000,-1017.05536429,0.0003014,4]
[425190000,1781565062000,-1359.09013272,0.0003014,4]
[425189995,1781565062000,-1359.09013272,0.0003014,4]
[425189996,1781565062000,-1359.09013272,0.0003014,4]
[425189998,1781565062000,-1359.09013272,0.0003014,4]
[425189993,1781565062000,-1359.09013272,0.0003014,4]
[425189989,1781565062000,-1359.09013272,0.0003014,4]
[425189988,1781565062000,-1359.09013272,0.0003014,4]
[425189990,1781565062000,-1359.09013272,0.0003014,4]
[425189991,1781565062000,-1359.09013272,0.0003014,4]
[425189994,1781565062000,-1359.09013272,0.0003014,4]
[425189992,1781565062000,-1359.09013272,0.0003014,4]
[425189997,1781565062000,-1359.09013272,0.0003014,4]
[425190007,1781565062000,-1359.09,0.0003014,4]
[425190003,1781565062000,-1359.09013272,0.0003014,4]
[425190002,1781565062000,-1359.09013272,0.0003014,4]
[425190001,1781565062000,-1359.09013272,0.0003014,4]
[425190008,1781565062000,-953.63616953,0.0003014,4]
[425190005,1781565062000,-1359.09013272,0.0003014,4]
[425190013,1781565062000,-953.63616953,0.0003014,4]
[425190014,1781565062000,-953.63616953,0.0003014,4]
[425190004,1781565062000,-1359.09013272,0.0003014,4]
[425190006,1781565062000,-1359.09013272,0.0003014,4]
[425190012,1781565062000,-953.63616953,0.0003014,4]
[425189987,1781565062000,-582.46,0.0003014,4]
[425189999,1781565062000,-1359.09013272,0.0003014,4]
[425189984,1781565062000,-582.46719974,0.0003014,4]
[425189961,1781565062000,-2373.12918334,0.0003014,4]
[425189982,1781565062000,-582.46719974,0.0003014,4]
[425189959,1781565062000,-2373.12918334,0.0003014,4]
[425189960,1781565062000,-2373.12918334,0.0003014,4]
[425189962,1781565062000,-2373.12918334,0.0003014,4]
[425189966,1781565062000,-2373.12918334,0.0003014,4]
[425189971,1781565062000,-582.46719974,0.0003014,4]
[425189964,1781565062000,-2373.12918334,0.0003014,4]
[425189969,1781565062000,-582.46719974,0.0003014,4]
[425189963,1781565062000,-2373.12918334,0.0003014,4]
[425189970,1781565062000,-582.46719974,0.0003014,4]
[425189965,1781565062000,-2373.12918334,0.0003014,4]
[425189967,1781565062000,-2373.12,0.0003014,4]
[425189986,1781565062000,-582.46719974,0.0003014,4]
[425189968,1781565062000,-582.46719974,0.0003014,4]
[425189974,1781565062000,-582.46719974,0.0003014,4]
[425189972,1781565062000,-582.46719974,0.0003014,4]
[425189975,1781565062000,-582.46719974,0.0003014,4]
[425189976,1781565062000,-582.46719974,0.0003014,4]
[425189979,1781565062000,-582.46719974,0.0003014,4]
[425189978,1781565062000,-582.46719974,0.0003014,4]
[425189977,1781565062000,-582.46719974,0.0003014,4]
[425189980,1781565062000,-582.46719974,0.0003014,4]
[425189981,1781565062000,-582.46719974,0.0003014,4]
[425189983,1781565062000,-582.46719974,0.0003014,4]
[425189985,1781565062000,-582.46719974,0.0003014,4]
[425189973,1781565062000,-582.46719974,0.0003014,4]
[425190010,1781565062000,-953.63616953,0.0003014,4]
[425190021,1781565062000,-953.63616953,0.0003014,4]
[425190009,1781565062000,-953.63616953,0.0003014,4]
[425190043,1781565062000,-2225.15106223,0.0003014,4]
[425190045,1781565062000,-2225.15106223,0.0003014,4]
[425190046,1781565062000,-2225.15106223,0.0003014,4]
[425190048,1781565062000,-1139.0,0.00030146,2]
[425190042,1781565062000,-2225.15106223,0.0003014,4]
[425190050,1781565062000,-150.0,0.00030146,2]
[425190051,1781565062000,-209.0,0.00030146,2]
[425190060,1781565062000,-828.73766743,0.00030152,7]
[425190049,1781565062000,-150.0,0.00030146,2]
[425190052,1781565062000,-2000.0,0.00030149,2]
[425190055,1781565062000,-200.0,0.00030149,2]
[425190044,1781565062000,-2225.15106223,0.0003014,4]
[425190058,1781565062000,-200.0,0.00030149,2]
[425190053,1781565062000,-934.0,0.00030149,2]
[425190056,1781565062000,-200.0,0.00030149,2]
[425190054,1781565062000,-200.0,0.00030149,2]
[425190062,1781565062000,-665.37983468,0.00030152,7]
[425190061,1781565062000,-654.1129861,0.00030152,7]
[425190064,1781565062000,-651.48561238,0.00030152,7]
[425190066,1781565062000,-769.20957607,0.00030152,7]
[425190063,1781565062000,-722.6368925,0.00030152,7]
[425190067,1781565062000,-1269.0,0.00030155,2]
[425190065,1781565062000,-436.32282945,0.00030152,7]
[425190011,1781565062000,-953.63616953,0.0003014,4]
[425190059,1781565062000,-288.0,0.00030149,2]
[425190047,1781565062000,-2225.15,0.0003014,4]
[425190057,1781565062000,-200.0,0.00030149,2]
[425190041,1781565062000,-2225.15106223,0.0003014,4]
[425190040,1781565062000,-2225.15106223,0.0003014,4]
[425190015,1781565062000,-953.63616953,0.0003014,4]
[425190017,1781565062000,-953.63616953,0.0003014,4]
[425190018,1781565062000,-953.63616953,0.0003014,4]
[425190019,1781565062000,-953.63616953,0.0003014,4]
[425190016,1781565062000,-953.63616953,0.0003014,4]
[425190020,1781565062000,-953.63616953,0.0003014,4]